[Event "*** Titled Tuesday Blitz"]
[Site "Chess.com"]
[Date "2020.11.10"]
[Round "2"]
[White "anon102030"]
[Black "ShahMatKanal"]
[Result "1-0"]
[WhiteElo "2732"]
[BlackElo "2501"]
[TimeControl "180+1"]
[EndTime "10:21:47 PST"]
[Termination "anon102030 won by checkmate"]

1. e4 {[%clk 0:03:00.9]} 1... c6 {[%clk 0:02:59.2]} 2. d3 {[%clk 0:03:00.3]}
2... g6 {[%clk 0:02:57.6]} 3. Nd2 {[%clk 0:03:01.2]} 3... Bg7 {[%clk 0:02:57.9]}
4. g3 {[%clk 0:03:01.6]} 4... e5 {[%clk 0:02:56.3]} 5. Bg2 {[%clk 0:03:02]} 5...
Ne7 {[%clk 0:02:56.9]} 6. Ne2 {[%clk 0:03:02.2]} 6... O-O {[%clk 0:02:57.4]} 7.
O-O {[%clk 0:03:02.8]} 7... d5 {[%clk 0:02:55.6]} 8. b3 {[%clk 0:02:59.3]} 8...
a5 {[%clk 0:02:35.3]} 9. a4 {[%clk 0:02:58.6]} 9... Na6 {[%clk 0:02:34.5]} 10.
Bb2 {[%clk 0:02:57.5]} 10... Bg4 {[%clk 0:02:28.8]} 11. h3 {[%clk 0:02:51.9]}
11... Be6 {[%clk 0:02:28.6]} 12. f4 {[%clk 0:02:49.1]} 12... Qd7 {[%clk
0:02:20.4]} 13. Kh2 {[%clk 0:02:35.5]} 13... dxe4 {[%clk 0:02:01.3]} 14. Nxe4
{[%clk 0:02:30.6]} 14... Nd5 {[%clk 0:01:52.8]} 15. Qc1 {[%clk 0:02:20.7]} 15...
exf4 {[%clk 0:01:36.2]} 16. Nxf4 {[%clk 0:02:19.3]} 16... Nxf4 {[%clk
0:01:27.8]} 17. Rxf4 {[%clk 0:02:09.3]} 17... f5 {[%clk 0:01:24.4]} 18. Ng5
{[%clk 0:01:58.8]} 18... Bd5 {[%clk 0:01:19]} 19. Bxg7 {[%clk 0:01:58.9]} 19...
Kxg7 {[%clk 0:01:12]} 20. Qb2+ {[%clk 0:01:54.5]} 20... Rf6 {[%clk 0:00:58.6]}
21. Nxh7 {[%clk 0:01:49]} 21... Qf7 {[%clk 0:00:32.3]} 22. Qxf6+ {[%clk
0:01:37]} 22... Qxf6 {[%clk 0:00:32.2]} 23. Nxf6 {[%clk 0:01:37.9]} 23... Kxf6
{[%clk 0:00:33.1]} 24. Raf1 {[%clk 0:01:28.3]} 24... Nc7 {[%clk 0:00:29.6]} 25.
R4f2 {[%clk 0:01:06.4]} 25... Bxg2 {[%clk 0:00:25.6]} 26. Kxg2 {[%clk 0:01:07]}
26... Nd5 {[%clk 0:00:26.1]} 27. Re1 {[%clk 0:01:05.9]} 27... b5 {[%clk
0:00:23.8]} 28. Rfe2 {[%clk 0:01:02.7]} 28... Kf7 {[%clk 0:00:18.2]} 29. axb5
{[%clk 0:01:01.2]} 29... cxb5 {[%clk 0:00:19.1]} 30. Re5 {[%clk 0:01:00.6]}
30... Nc3 {[%clk 0:00:18.6]} 31. Re7+ {[%clk 0:00:57.7]} 31... Kf6 {[%clk
0:00:17.8]} 32. R1e6+ {[%clk 0:00:55.4]} 32... Kg5 {[%clk 0:00:17.6]} 33. h4+
{[%clk 0:00:44.4]} 33... Kg4 {[%clk 0:00:17.6]} 34. Rxg6+ {[%clk 0:00:43.8]}
34... Kh5 {[%clk 0:00:18]} 35. Rg5+ {[%clk 0:00:43.7]} 35... Kh6 {[%clk
0:00:18.2]} 36. Re6+ {[%clk 0:00:41.7]} 36... Kh7 {[%clk 0:00:17.9]} 37. Rxf5
{[%clk 0:00:25]} 37... a4 {[%clk 0:00:18.2]} 38. bxa4 {[%clk 0:00:25.4]} 38...
bxa4 {[%clk 0:00:19.1]} 39. Rf7+ {[%clk 0:00:22.5]} 39... Kg8 {[%clk 0:00:18.7]}
40. Rf1 {[%clk 0:00:22.7]} 40... a3 {[%clk 0:00:16.5]} 41. Rc6 {[%clk
0:00:19.2]} 41... Nd5 {[%clk 0:00:13.1]} 42. Ra1 {[%clk 0:00:18.5]} 42... a2
{[%clk 0:00:10]} 43. Kf3 {[%clk 0:00:16.3]} 43... Kf7 {[%clk 0:00:08.6]} 44. g4
{[%clk 0:00:15]} 44... Nb4 {[%clk 0:00:06.7]} 45. Rc4 {[%clk 0:00:13.3]} 45...
Nd5 {[%clk 0:00:07]} 46. g5 {[%clk 0:00:13.5]} 46... Ke6 {[%clk 0:00:07.2]} 47.
h5 {[%clk 0:00:12.9]} 47... Kf5 {[%clk 0:00:07.1]} 48. Rc5 {[%clk 0:00:12.9]}
48... Ke6 {[%clk 0:00:07.1]} 49. Rxd5 {[%clk 0:00:12.8]} 49... Kxd5 {[%clk
0:00:07.3]} 50. g6 {[%clk 0:00:13.3]} 50... Ke6 {[%clk 0:00:07.6]} 51. Kg4
{[%clk 0:00:12.3]} 51... Kf6 {[%clk 0:00:07.7]} 52. c4 {[%clk 0:00:12.5]} 52...
Ra4 {[%clk 0:00:07.5]} 53. Kf4 {[%clk 0:00:10.9]} 53... Ra5 {[%clk 0:00:06.9]}
54. Ke4 {[%clk 0:00:09.2]} 54... Rxh5 {[%clk 0:00:02.8]} 55. Rxa2 {[%clk
0:00:09.2]} 55... Kxg6 {[%clk 0:00:03.7]} 56. Ra6+ {[%clk 0:00:07.8]} 56... Kf7
{[%clk 0:00:03.9]} 57. d4 {[%clk 0:00:07.9]} 57... Ke7 {[%clk 0:00:04.3]} 58. c5
{[%clk 0:00:07.6]} 58... Kd7 {[%clk 0:00:04.7]} 59. Kd3 {[%clk 0:00:07.8]} 59...
Rh1 {[%clk 0:00:04.6]} 60. Kc4 {[%clk 0:00:07.9]} 60... Rc1+ {[%clk 0:00:04]}
61. Kd5 {[%clk 0:00:08.1]} 61... Rh1 {[%clk 0:00:04.9]} 62. Ra7+ {[%clk
0:00:08.5]} 62... Kc8 {[%clk 0:00:05.8]} 63. Kc6 {[%clk 0:00:08.5]} 63... Rh6+
{[%clk 0:00:05.4]} 64. Kb5 {[%clk 0:00:08.7]} 64... Rh1 {[%clk 0:00:06.3]} 65.
d5 {[%clk 0:00:08.1]} 65... Rh6 {[%clk 0:00:05.2]} 66. d6 {[%clk 0:00:07.6]}
66... Rh1 {[%clk 0:00:02.4]} 67. Kc6 {[%clk 0:00:07.4]} 67... Kb8 {[%clk
0:00:01.9]} 68. Rb7+ {[%clk 0:00:07.3]} 68... Ka8 {[%clk 0:00:01.8]} 69. Rg7
{[%clk 0:00:08.2]} 69... Re1 {[%clk 0:00:01.3]} 70. Rg8+ {[%clk 0:00:06.8]}
70... Ka7 {[%clk 0:00:01]} 71. d7 {[%clk 0:00:07.7]} 71... Rd1 {[%clk
0:00:01.5]} 72. d8=Q {[%clk 0:00:07.3]} 72... Rxd8 {[%clk 0:00:02.4]} 73. Rxd8
{[%clk 0:00:07.7]} 73... Ka6 {[%clk 0:00:02.8]} 74. Ra8# {[%clk 0:00:08.6]} 1-0

[Event "*** Titled Tuesday Blitz"]
[Site "Chess.com"]
[Date "2020.11.10"]
[Round "2"]
[White "winniethepooh04"]
[Black "karwowskikacper"]
[Result "0-1"]
[WhiteElo "2223"]
[BlackElo "2439"]
[TimeControl "180+1"]
[EndTime "10:21:59 PST"]
[Termination "karwowskikacper won on time"]

1. e4 {[%clk 0:02:57.9]} 1... e6 {[%clk 0:02:57.2]} 2. d4 {[%clk 0:02:55.9]}
2... c5 {[%clk 0:02:56.1]} 3. Nf3 {[%clk 0:02:53.9]} 3... Nf6 {[%clk 0:02:50.8]}
4. Bd3 {[%clk 0:02:50.3]} 4... c4 {[%clk 0:02:47.7]} 5. Bxc4 {[%clk 0:02:46.4]}
5... Nxe4 {[%clk 0:02:47.7]} 6. O-O {[%clk 0:02:46.7]} 6... d5 {[%clk
0:02:47.8]} 7. Bb5+ {[%clk 0:02:46.1]} 7... Bd7 {[%clk 0:02:48]} 8. Bd3 {[%clk
0:02:44.6]} 8... Bd6 {[%clk 0:02:46.2]} 9. c4 {[%clk 0:02:39.4]} 9... O-O {[%clk
0:02:44.5]} 10. h3 {[%clk 0:02:33.6]} 10... Nc6 {[%clk 0:02:40.4]} 11. Nc3
{[%clk 0:02:25.7]} 11... Nxc3 {[%clk 0:02:36.8]} 12. bxc3 {[%clk 0:02:22.8]}
12... dxc4 {[%clk 0:02:37.7]} 13. Bxc4 {[%clk 0:02:21.4]} 13... Rc8 {[%clk
0:02:37.5]} 14. Bb3 {[%clk 0:02:17.2]} 14... Qa5 {[%clk 0:02:16.6]} 15. Qd3
{[%clk 0:02:10.6]} 15... Ne7 {[%clk 0:02:07]} 16. Bc2 {[%clk 0:01:59.2]} 16...
Ng6 {[%clk 0:02:03.9]} 17. Bd2 {[%clk 0:01:53.8]} 17... Qh5 {[%clk 0:01:56.5]}
18. Bd1 {[%clk 0:01:34.7]} 18... Bb5 {[%clk 0:01:43.3]} 19. Qe4 {[%clk
0:01:18.8]} 19... Bxf1 {[%clk 0:01:33.3]} 20. Kxf1 {[%clk 0:01:18.2]} 20... Qf5
{[%clk 0:01:30.8]} 21. Qxf5 {[%clk 0:01:13.1]} 21... exf5 {[%clk 0:01:31.7]} 22.
Bc2 {[%clk 0:01:11.7]} 22... Ne7 {[%clk 0:01:30]} 23. Rb1 {[%clk 0:00:59.7]}
23... b6 {[%clk 0:01:03]} 24. a4 {[%clk 0:00:47.3]} 24... g6 {[%clk 0:00:58.6]}
25. a5 {[%clk 0:00:33.1]} 25... Nd5 {[%clk 0:00:39.9]} 26. c4 {[%clk 0:00:25.1]}
26... Rxc4 {[%clk 0:00:32.5]} 27. Bb3 {[%clk 0:00:21.9]} 27... b5 {[%clk
0:00:21.3]} 28. Bxc4 {[%clk 0:00:20.3]} 28... bxc4 {[%clk 0:00:22.2]} 29. Rb7
{[%clk 0:00:19.8]} 29... Ra8 {[%clk 0:00:12]} 30. Rd7 {[%clk 0:00:18]} 30... c3
{[%clk 0:00:09.7]} 31. Bh6 {[%clk 0:00:16.6]} 31... c2 {[%clk 0:00:08]} 32. Rxd6
{[%clk 0:00:16.2]} 32... f4 {[%clk 0:00:08.4]} 33. Rc6 {[%clk 0:00:15.2]} 33...
Rb8 {[%clk 0:00:07.9]} 34. Rxc2 {[%clk 0:00:10]} 34... f5 {[%clk 0:00:08.2]} 35.
Ke2 {[%clk 0:00:09.3]} 35... Kf7 {[%clk 0:00:08.6]} 36. Ne5+ {[%clk 0:00:08.3]}
36... Ke6 {[%clk 0:00:08.9]} 37. Nc6 {[%clk 0:00:08.1]} 37... Re8 {[%clk
0:00:08.4]} 38. Kd3 {[%clk 0:00:06.5]} 38... Kd6 {[%clk 0:00:08.8]} 39. Bg7
{[%clk 0:00:05.1]} 39... Rc8 {[%clk 0:00:08.2]} 40. Be5+ {[%clk 0:00:05.3]}
40... Ke6 {[%clk 0:00:07.5]} 41. Rc4 {[%clk 0:00:05]} 41... g5 {[%clk 0:00:06]}
42. Nb4 {[%clk 0:00:05.4]} 42... Rxc4 {[%clk 0:00:04.2]} 43. Kxc4 {[%clk
0:00:05.7]} 43... Ne7 {[%clk 0:00:03.7]} 44. Bb8 {[%clk 0:00:03.5]} 44... Nc8
{[%clk 0:00:02.8]} 45. Nc6 {[%clk 0:00:03]} 45... Kd7 {[%clk 0:00:02.9]} 46.
Nxa7 {[%clk 0:00:03.3]} 46... Ne7 {[%clk 0:00:03.7]} 47. Nb5 {[%clk 0:00:02.5]}
47... h5 {[%clk 0:00:03.9]} 48. Be5 {[%clk 0:00:02.7]} 48... Nc6 {[%clk
0:00:03.8]} 49. a6 {[%clk 0:00:02.4]} 49... Na5+ {[%clk 0:00:02.2]} 50. Kc5
{[%clk 0:00:02.2]} 50... Nc6 {[%clk 0:00:03.1]} 51. Kb6 {[%clk 0:00:01.5]} 51...
h4 {[%clk 0:00:02.3]} 52. a7 {[%clk 0:00:01.7]} 52... Nxa7 {[%clk 0:00:02.6]}
53. Kxa7 {[%clk 0:00:02]} 53... Kc6 {[%clk 0:00:03.2]} 54. d5+ {[%clk
0:00:01.5]} 54... Kxd5 {[%clk 0:00:02.9]} 55. Bf6 {[%clk 0:00:02.4]} 55... g4
{[%clk 0:00:03.1]} 56. Bg5 {[%clk 0:00:02.9]} 56... Ke4 {[%clk 0:00:03]} 57.
hxg4 {[%clk 0:00:02.9]} 57... fxg4 {[%clk 0:00:03.1]} 58. Bxh4 {[%clk
0:00:03.4]} 58... f3 {[%clk 0:00:03.5]} 59. g3 {[%clk 0:00:03]} 59... Kd3 {[%clk
0:00:03.7]} 60. Nd6 {[%clk 0:00:03.1]} 60... Ke2 {[%clk 0:00:03.1]} 61. Nf7
{[%clk 0:00:03.1]} 61... Kxf2 {[%clk 0:00:03.2]} 62. Ne5 {[%clk 0:00:04]} 62...
Kg2 {[%clk 0:00:02.1]} 63. Nxg4 {[%clk 0:00:04.6]} 63... Kh3 {[%clk 0:00:02.5]}
64. Ne3 {[%clk 0:00:05]} 64... f2 {[%clk 0:00:02.5]} 65. g4 {[%clk 0:00:03.6]}
65... Kxh4 {[%clk 0:00:02.6]} 66. Nf1 {[%clk 0:00:03.8]} 66... Kxg4 {[%clk
0:00:02.7]} 67. Kb6 {[%clk 0:00:02.9]} 67... Kf3 {[%clk 0:00:03.6]} 68. Kc5
{[%clk 0:00:03.3]} 68... Ke2 {[%clk 0:00:04.1]} 69. Nh2 {[%clk 0:00:02.7]} 69...
Kd3 {[%clk 0:00:05]} 70. Kd5 {[%clk 0:00:02.5]} 70... Ke3 {[%clk 0:00:05.9]} 0-1

[Event "*** Titled Tuesday Blitz"]
[Site "Chess.com"]
[Date "2020.11.10"]
[Round "2"]
[White "Margency"]
[Black "hypert"]
[Result "1-0"]
[WhiteElo "2693"]
[BlackElo "2445"]
[TimeControl "180+1"]
[EndTime "10:22:00 PST"]
[Termination "Margency won by resignation"]

1. e4 {[%clk 0:03:00.9]} 1... c5 {[%clk 0:02:56.6]} 2. Nf3 {[%clk 0:03:00.7]}
2... a6 {[%clk 0:02:56.8]} 3. c3 {[%clk 0:02:59.4]} 3... e6 {[%clk 0:02:56.3]}
4. d4 {[%clk 0:02:59.5]} 4... d5 {[%clk 0:02:56.9]} 5. exd5 {[%clk 0:02:58.8]}
5... exd5 {[%clk 0:02:57.6]} 6. Bd3 {[%clk 0:02:59]} 6... Nf6 {[%clk 0:02:57.8]}
7. O-O {[%clk 0:02:58.8]} 7... Nbd7 {[%clk 0:02:57.9]} 8. Re1+ {[%clk
0:02:57.9]} 8... Be7 {[%clk 0:02:58.5]} 9. Bf4 {[%clk 0:02:49.9]} 9... O-O
{[%clk 0:02:55.9]} 10. Nbd2 {[%clk 0:02:49.3]} 10... cxd4 {[%clk 0:02:54]} 11.
Nxd4 {[%clk 0:02:47.6]} 11... Nc5 {[%clk 0:02:54.2]} 12. Bc2 {[%clk 0:02:44.8]}
12... Bg4 {[%clk 0:02:53.2]} 13. f3 {[%clk 0:02:39.2]} 13... Bd7 {[%clk
0:02:49.9]} 14. Nf1 {[%clk 0:02:34.7]} 14... Re8 {[%clk 0:02:49.6]} 15. Ne3
{[%clk 0:02:32.4]} 15... Qb6 {[%clk 0:02:36.2]} 16. Rb1 {[%clk 0:02:24.1]} 16...
Bd6 {[%clk 0:02:30.1]} 17. Bxd6 {[%clk 0:02:22.1]} 17... Qxd6 {[%clk 0:02:29]}
18. Qd2 {[%clk 0:02:22.3]} 18... Rad8 {[%clk 0:02:25.2]} 19. Nef5 {[%clk
0:02:15.9]} 19... Bxf5 {[%clk 0:02:24.4]} 20. Nxf5 {[%clk 0:02:16]} 20... Qf8
{[%clk 0:02:24.9]} 21. Qg5 {[%clk 0:01:56.7]} 21... Ne6 {[%clk 0:02:20.3]} 22.
Qg3 {[%clk 0:01:53.3]} 22... g6 {[%clk 0:02:01.1]} 23. Rbd1 {[%clk 0:01:47.6]}
23... Qc5+ {[%clk 0:01:47.6]} 24. Kh1 {[%clk 0:01:39.6]} 24... Ng7 {[%clk
0:01:27.5]} 25. Nh6+ {[%clk 0:01:31.9]} 25... Kf8 {[%clk 0:01:27.8]} 26. Qg5
{[%clk 0:01:18.2]} 26... Rxe1+ {[%clk 0:00:49.6]} 27. Rxe1 {[%clk 0:01:16.8]}
27... Qf2 {[%clk 0:00:50.1]} 28. Qe5 {[%clk 0:00:43.2]} 28... Nge8 {[%clk
0:00:33.9]} 29. Bb3 {[%clk 0:00:30.8]} 29... Rd7 {[%clk 0:00:31.8]} 30. Ng4
{[%clk 0:00:25.8]} 30... Qb6 {[%clk 0:00:23.4]} 31. Qb8 {[%clk 0:00:12.3]} 31...
Qd8 {[%clk 0:00:19.6]} 32. Qf4 {[%clk 0:00:10.3]} 32... Nxg4 {[%clk 0:00:18.6]}
33. Qxg4 {[%clk 0:00:10.7]} 33... Re7 {[%clk 0:00:18.8]} 34. Rd1 {[%clk
0:00:10.5]} 34... Nf6 {[%clk 0:00:17.8]} 35. Qf4 {[%clk 0:00:09.9]} 35... Re6
{[%clk 0:00:17]} 36. h4 {[%clk 0:00:09.2]} 36... Qd6 {[%clk 0:00:16.1]} 37.
Qxd6+ {[%clk 0:00:09.1]} 37... Rxd6 {[%clk 0:00:17]} 38. Rd4 {[%clk 0:00:09.1]}
38... Ke7 {[%clk 0:00:17.2]} 39. g4 {[%clk 0:00:09.4]} 39... Ke6 {[%clk
0:00:15.5]} 40. Kg2 {[%clk 0:00:08.1]} 40... Nd7 {[%clk 0:00:15.6]} 41. f4
{[%clk 0:00:07.6]} 41... Nc5 {[%clk 0:00:15.5]} 42. Bc2 {[%clk 0:00:08]} 42...
Kd7 {[%clk 0:00:15.5]} 43. b4 {[%clk 0:00:06.8]} 43... Ne6 {[%clk 0:00:15.6]}
44. Rd2 {[%clk 0:00:03.6]} 44... Nxf4+ {[%clk 0:00:16.1]} 45. Kf3 {[%clk
0:00:04.1]} 45... Ne6 {[%clk 0:00:16.4]} 46. Bb3 {[%clk 0:00:04.2]} 46... Nc7
{[%clk 0:00:15.9]} 47. Kf4 {[%clk 0:00:04.1]} 47... f5 {[%clk 0:00:15.9]} 48.
gxf5 {[%clk 0:00:03.9]} 48... Rf6 {[%clk 0:00:16.3]} 49. Bc2 {[%clk 0:00:04]}
49... Kd6 {[%clk 0:00:14.1]} 50. Kg5 {[%clk 0:00:03.5]} 50... Ne8 {[%clk
0:00:11.4]} 51. fxg6 {[%clk 0:00:03.3]} 51... hxg6 {[%clk 0:00:10.3]} 52. Bxg6
{[%clk 0:00:04.2]} 52... Rf8 {[%clk 0:00:10.2]} 53. h5 {[%clk 0:00:04.6]} 53...
Nc7 {[%clk 0:00:10.5]} 54. c4 {[%clk 0:00:04.9]} 54... Ne6+ {[%clk 0:00:11.4]}
55. Kg4 {[%clk 0:00:04.5]} 55... d4 {[%clk 0:00:12.3]} 56. c5+ {[%clk
0:00:04.2]} 56... Ke5 {[%clk 0:00:11.6]} 57. h6 {[%clk 0:00:04.6]} 57... Rf4+
{[%clk 0:00:11]} 58. Kg3 {[%clk 0:00:04.5]} 58... Rf8 {[%clk 0:00:10.4]} 59.
Re2+ {[%clk 0:00:04.6]} 59... Kd5 {[%clk 0:00:09.7]} 60. h7 {[%clk 0:00:04.2]}
60... Ng5 {[%clk 0:00:08.3]} 61. Re7 {[%clk 0:00:01.8]} 61... Nxh7 {[%clk
0:00:07.9]} 62. Bxh7 {[%clk 0:00:01.1]} 62... Rf6 {[%clk 0:00:07.7]} 63. Rd7+
{[%clk 0:00:01.6]} 63... Kc4 {[%clk 0:00:08.2]} 64. Rxb7 {[%clk 0:00:01.8]}
64... Rh6 {[%clk 0:00:08.2]} 65. Bf5 {[%clk 0:00:01.6]} 65... d3 {[%clk
0:00:08.4]} 66. Bxd3+ {[%clk 0:00:02]} 66... Kxd3 {[%clk 0:00:08.4]} 67. Rb6
{[%clk 0:00:02.9]} 67... Rh8 {[%clk 0:00:06.7]} 68. a3 {[%clk 0:00:02.6]} 68...
Kc4 {[%clk 0:00:07.6]} 69. Rxa6 {[%clk 0:00:03]} 69... Rg8+ {[%clk 0:00:08.5]}
70. Kf4 {[%clk 0:00:02.9]} 70... Kb5 {[%clk 0:00:09.4]} 71. Rb6+ {[%clk
0:00:02.9]} 71... Kc4 {[%clk 0:00:09.8]} 72. Ke5 {[%clk 0:00:03.8]} 72... Rf8
{[%clk 0:00:10.5]} 73. Ke6 {[%clk 0:00:04.1]} 73... Kb3 {[%clk 0:00:10.8]} 74.
Kd7 {[%clk 0:00:04.6]} 74... Ka4 {[%clk 0:00:11.7]} 75. c6 {[%clk 0:00:05.1]}
75... Rf7+ {[%clk 0:00:11.7]} 76. Ke6 {[%clk 0:00:05.5]} 76... Rf1 {[%clk
0:00:09.2]} 77. Kd6 {[%clk 0:00:05.9]} 77... Rc1 {[%clk 0:00:10.1]} 78. Kc7
{[%clk 0:00:06.4]} 78... Rd1 {[%clk 0:00:10.8]} 79. Kb7 {[%clk 0:00:07.3]} 79...
Rc1 {[%clk 0:00:11.4]} 80. c7 {[%clk 0:00:08.2]} 80... Rc5 {[%clk 0:00:10.4]}
81. c8=Q {[%clk 0:00:08.6]} 81... Rc7+ {[%clk 0:00:10.1]} 82. Kxc7 {[%clk
0:00:08.9]} 1-0

[Event "*** Titled Tuesday Blitz"]
[Site "Chess.com"]
[Date "2020.11.10"]
[Round "2"]
[White "Oglob71"]
[Black "IsuruAlahakoon"]
[Result "0-1"]
[WhiteElo "2450"]
[BlackElo "2395"]
[TimeControl "180+1"]
[EndTime "10:22:00 PST"]
[Termination "IsuruAlahakoon won by checkmate"]

1. d4 {[%clk 0:03:00.9]} 1... d5 {[%clk 0:02:59.4]} 2. Nf3 {[%clk 0:03:00.6]}
2... Bf5 {[%clk 0:02:58.6]} 3. e3 {[%clk 0:03:00.1]} 3... e6 {[%clk 0:02:58.5]}
4. c4 {[%clk 0:02:59.6]} 4... Nc6 {[%clk 0:02:56.3]} 5. Nc3 {[%clk 0:03:00]}
5... Nb4 {[%clk 0:02:55.8]} 6. e4 {[%clk 0:02:56.2]} 6... dxe4 {[%clk
0:02:53.2]} 7. Ne5 {[%clk 0:02:54.9]} 7... Qxd4 {[%clk 0:02:34.5]} 8. Qxd4
{[%clk 0:02:46.3]} 8... Nc2+ {[%clk 0:02:33.8]} 9. Kd1 {[%clk 0:02:46.3]} 9...
Nxd4 {[%clk 0:02:34.1]} 10. Be3 {[%clk 0:02:46.9]} 10... Nc6 {[%clk 0:02:01.9]}
11. Nxc6 {[%clk 0:02:45]} 11... bxc6 {[%clk 0:02:02.8]} 12. Kc2 {[%clk 0:02:44]}
12... Nf6 {[%clk 0:02:01.7]} 13. h3 {[%clk 0:02:43.3]} 13... h5 {[%clk
0:02:00.7]} 14. Be2 {[%clk 0:02:41.8]} 14... Bd6 {[%clk 0:01:52.1]} 15. Rad1
{[%clk 0:02:41.4]} 15... O-O {[%clk 0:01:46.1]} 16. Na4 {[%clk 0:02:41.7]} 16...
Be5 {[%clk 0:01:39]} 17. b3 {[%clk 0:02:40.5]} 17... a6 {[%clk 0:01:36.5]} 18.
Nc5 {[%clk 0:02:39.4]} 18... a5 {[%clk 0:01:36.3]} 19. Na4 {[%clk 0:02:34]}
19... Bg6 {[%clk 0:01:24.8]} 20. Rd2 {[%clk 0:02:31.5]} 20... Nh7 {[%clk
0:01:16.5]} 21. Rhd1 {[%clk 0:02:27.8]} 21... f5 {[%clk 0:01:15.7]} 22. g3
{[%clk 0:02:25.8]} 22... h4 {[%clk 0:01:15.5]} 23. Bf4 {[%clk 0:02:23.3]} 23...
Bxf4 {[%clk 0:01:13.7]} 24. gxf4 {[%clk 0:02:22.9]} 24... Nf6 {[%clk 0:01:14.1]}
25. Nc5 {[%clk 0:02:20.5]} 25... Rfe8 {[%clk 0:01:09.9]} 26. Kc3 {[%clk
0:02:17.9]} 26... Bh5 {[%clk 0:01:09.3]} 27. Rg1 {[%clk 0:01:59.9]} 27... Bxe2
{[%clk 0:01:07.8]} 28. Rxe2 {[%clk 0:02:00.3]} 28... Nh5 {[%clk 0:01:08.3]} 29.
Rd2 {[%clk 0:01:58.6]} 29... Re7 {[%clk 0:01:03]} 30. Nd7 {[%clk 0:01:32.4]}
30... Nxf4 {[%clk 0:00:55.7]} 31. Ne5 {[%clk 0:01:28]} 31... a4 {[%clk
0:00:52.1]} 32. Nxc6 {[%clk 0:01:26.7]} 32... Rf7 {[%clk 0:00:51.8]} 33. Ne5
{[%clk 0:01:23.7]} 33... Re7 {[%clk 0:00:48.6]} 34. Ng6 {[%clk 0:01:23.7]} 34...
Nxg6 {[%clk 0:00:45.3]} 35. Rxg6 {[%clk 0:01:24]} 35... axb3 {[%clk 0:00:45.4]}
36. axb3 {[%clk 0:01:24.2]} 36... Ra1 {[%clk 0:00:41.7]} 37. Rg2 {[%clk
0:01:03]} 37... Rh1 {[%clk 0:00:39.7]} 38. Rd8+ {[%clk 0:00:59.2]} 38... Kh7
{[%clk 0:00:38.6]} 39. Kb4 {[%clk 0:00:58.8]} 39... Rxh3 {[%clk 0:00:37.9]} 40.
Rf8 {[%clk 0:00:56.2]} 40... Rf3 {[%clk 0:00:32.5]} 41. Rb8 {[%clk 0:00:47.4]}
41... h3 {[%clk 0:00:31.1]} 42. Rh2 {[%clk 0:00:47.8]} 42... g5 {[%clk
0:00:30.6]} 43. Kc5 {[%clk 0:00:48.2]} 43... g4 {[%clk 0:00:30.5]} 44. b4 {[%clk
0:00:48.7]} 44... e3 {[%clk 0:00:27.1]} 45. fxe3 {[%clk 0:00:47.5]} 45... Rxe3
{[%clk 0:00:26.9]} 46. b5 {[%clk 0:00:47.9]} 46... Re4 {[%clk 0:00:23.9]} 47.
Rf8 {[%clk 0:00:37.5]} 47... Kg7 {[%clk 0:00:23.2]} 48. Ra8 {[%clk 0:00:35.5]}
48... Kf6 {[%clk 0:00:23]} 49. Rf8+ {[%clk 0:00:34.5]} 49... Ke5 {[%clk
0:00:22.9]} 50. Kb4 {[%clk 0:00:31.9]} 50... Kf4 {[%clk 0:00:22.4]} 51. Kc3
{[%clk 0:00:30]} 51... Kg3 {[%clk 0:00:22.3]} 52. Rh1 {[%clk 0:00:29.8]} 52...
Kg2 {[%clk 0:00:21.2]} 53. Rc1 {[%clk 0:00:30]} 53... h2 {[%clk 0:00:21.3]} 54.
Rh8 {[%clk 0:00:29.3]} 54... g3 {[%clk 0:00:21.4]} 55. c5 {[%clk 0:00:28.1]}
55... f4 {[%clk 0:00:17.6]} 56. b6 {[%clk 0:00:28]} 56... cxb6 {[%clk 0:00:17]}
57. cxb6 {[%clk 0:00:28.7]} 57... f3 {[%clk 0:00:16]} 58. Rb1 {[%clk 0:00:27.2]}
58... Rb7 {[%clk 0:00:15.3]} 59. Kd3 {[%clk 0:00:27.8]} 59... Re2 {[%clk
0:00:14.4]} 60. Rg8 {[%clk 0:00:26.3]} 60... Rf2 {[%clk 0:00:14]} 61. Kc4 {[%clk
0:00:25]} 61... Rxb6 {[%clk 0:00:13.8]} 62. Rxb6 {[%clk 0:00:23.8]} 62... h1=Q
{[%clk 0:00:13.4]} 63. Rxe6 {[%clk 0:00:24]} 63... Qc1+ {[%clk 0:00:13.1]} 64.
Kd5 {[%clk 0:00:23.1]} 64... Rd2+ {[%clk 0:00:13]} 65. Ke5 {[%clk 0:00:23.3]}
65... Qc3+ {[%clk 0:00:12.3]} 66. Kf5 {[%clk 0:00:23]} 66... Rd5+ {[%clk
0:00:11.9]} 67. Kg6 {[%clk 0:00:22.8]} 67... Qd3+ {[%clk 0:00:11.3]} 68. Kf6
{[%clk 0:00:22.7]} 68... Qf5+ {[%clk 0:00:10.9]} 69. Ke7 {[%clk 0:00:22.9]}
69... Qh7+ {[%clk 0:00:10.6]} 70. Kf8 {[%clk 0:00:21]} 70... Rf5+ {[%clk
0:00:09.9]} 71. Ke8 {[%clk 0:00:18.4]} 71... Qf7+ {[%clk 0:00:09.9]} 72. Kd8
{[%clk 0:00:17.4]} 72... Qxe6 {[%clk 0:00:09.6]} 73. Rxg3+ {[%clk 0:00:15.3]}
73... Kxg3 {[%clk 0:00:08.8]} 74. Kc7 {[%clk 0:00:15.8]} 74... Rf7+ {[%clk
0:00:08.3]} 75. Kd8 {[%clk 0:00:14.6]} 75... Qd7# {[%clk 0:00:08.5]} 0-1